fUSD/lending_fUSD_20260528
["ID","MTS","AMOUNT","RATE_DAILY","PERIOD"]
[423215390,1779937844000,-151.0,0.00039501,30]
[423215394,1779937844000,-311.1,0.00039501,30]
[423215405,1779937844000,-151.0,0.00039501,30]
[423215392,1779937844000,-3111.0,0.00039501,30]
[423215407,1779937844000,-168.3888056,0.00039501,30]
[423215409,1779937844000,-3345.472959,0.00039501,30]
[423215347,1779937844000,-19989.21030894,0.00039312,15]
[423215386,1779937844000,-1000.0,0.00039501,30]
[423215361,1779937844000,-156.11323374,0.00039491,2]
[423215316,1779937844000,-1468.0,0.00039,2]
[423215357,1779937844000,-500.0,0.00039452,2]
[423215298,1779937844000,-221.06679908,0.00038673,11]
[423215301,1779937844000,-23989.0,0.000388,30]
[423215304,1779937844000,-502.0,0.00038812,16]
[423215310,1779937844000,-1000.0,0.00038999,4]
[423215306,1779937844000,-155.0,0.00038904,120]
[423215309,1779937844000,-1000.0,0.00038999,3]
[423215325,1779937844000,-1815.15,0.000392,120]
[423215323,1779937844000,-641.29,0.000392,120]
[423215321,1779937844000,-2317.0,0.00039117,11]
[423215329,1779937844000,-2000.0,0.0003928,112]
[423215327,1779937844000,-2004.36,0.000392,120]
[423215349,1779937844000,-460.35859893,0.00039418,2]
[423215331,1779937844000,-2000.0,0.0003928,112]
[423215313,1779937844000,-1078.0,0.00039,2]
[423215318,1779937844000,-265.0,0.00039,2]
[423215335,1779937844000,-2000.0,0.0003928,112]
[423215337,1779937844000,-1000.0,0.00039299,90]
[423215339,1779937844000,-227.3,0.000393,31]
[423215341,1779937844000,-573.019587,0.000393,39]
[423215351,1779937844000,-1000.0,0.00039428,11]
[423215359,1779937844000,-2598.1474903,0.00039452,60]
[423215355,1779937844000,-2317.0,0.00039439,11]
[423215353,1779937844000,-163.0,0.00039438,11]
[423215343,1779937844000,-153.0,0.000393,120]
[423215333,1779937844000,-2000.0,0.0003928,112]
[423215413,1779937844000,-160.0,0.00039501,30]
[423215415,1779937844000,-620.0,0.00039501,30]
[423215427,1779937844000,-170.57514512,0.00039501,30]
[423215487,1779937844000,-151.0,0.00039501,30]
[423215469,1779937844000,-200.0,0.00039501,30]
[423215475,1779937844000,-691.39774486,0.00039501,30]
[423215479,1779937844000,-326.99653124,0.00039501,30]
[423215473,1779937844000,-500.0,0.00039501,30]
[423215477,1779937844000,-1030.0,0.00039501,30]
[423215491,1779937844000,-500.0,0.00039501,30]
[423215508,1779937844000,-151.0,0.00039501,30]
[423215494,1779937844000,-151.0,0.00039501,30]
[423215505,1779937844000,-518.5,0.00039501,30]
[423215496,1779937844000,-6000.0,0.00039501,30]
[423215471,1779937844000,-194.72792766,0.00039501,30]
[423215499,1779937844000,-200.0,0.00039501,30]
[423215513,1779937844000,-200.0,0.00039501,30]
[423215518,1779937844000,-500.0,0.00039501,30]
[423215520,1779937844000,-1555.5,0.00039501,30]
[423215522,1779937844000,-3888.0,0.00039501,30]
[423215524,1779937844000,-162.380719,0.00039501,30]
[423215516,1779937844000,-162.380719,0.00039501,30]
[423215531,1779937844000,-152.0,0.00039501,30]
[423215526,1779937844000,-500.0,0.00039501,30]
[423215529,1779937844000,-716.97946141,0.00039501,30]
[423215536,1779937844000,-500.0,0.00039501,30]
[423215411,1779937844000,-450.8500647,0.00039501,30]
[423215502,1779937844000,-251.0,0.00039501,30]
[423215485,1779937844000,-500.0,0.00039501,30]
[423215511,1779937844000,-201.93286098,0.00039501,30]
[423215481,1779937844000,-151.0,0.00039501,30]
[423215483,1779937844000,-520.0,0.00039501,30]
[423215433,1779937844000,-642.94,0.00039501,30]
[423215421,1779937844000,-174.61919141,0.00039501,30]
[423215418,1779937844000,-500.0,0.00039501,30]
[423215429,1779937844000,-500.0,0.00039501,30]
[423215423,1779937844000,-1999.97475246,0.00039501,30]
[423215419,1779937844000,-156.587,0.00039501,30]
[423215425,1779937844000,-165.92,0.00039501,30]
[423215437,1779937844000,-162.380719,0.00039501,30]
[423215435,1779937844000,-181.08010149,0.00039501,30]
[423215439,1779937844000,-500.0,0.00039501,30]
[423215441,1779937844000,-151.0,0.00039501,30]
[423215443,1779937844000,-172.05904,0.00039501,30]
[423215431,1779937844000,-200.0,0.00039501,30]
[423215467,1779937844000,-156.587,0.00039501,30]
[423215457,1779937844000,-1500.0,0.00039501,30]
[423215455,1779937844000,-169.09158158,0.00039501,30]
[423215447,1779937844000,-200.0,0.00039501,30]
[423215459,1779937844000,-178.42522448,0.00039501,30]
[423215445,1779937844000,-151.0,0.00039501,30]
[423215449,1779937844000,-500.0,0.00039501,30]
[423215451,1779937844000,-666.72878,0.00039501,30]
[423215461,1779937844000,-500.0,0.00039501,30]
[423215463,1779937844000,-156.587,0.00039501,30]
[423215465,1779937844000,-500.0,0.00039501,30]
[423215453,1779937844000,-187.78006524,0.00039501,30]
[423215596,1779937845000,-151.0,0.00039501,30]
[423215595,1779937845000,-4181.034672,0.00039501,30]
[423215594,1779937845000,-1148.61238259,0.00039501,30]
[423215597,1779937845000,-200.0,0.00039501,30]
[423215588,1779937845000,-152.0,0.00039501,30]
[423215604,1779937845000,-1672.7364795,0.00039501,30]
[423215603,1779937845000,-185.74440335,0.00039501,30]
[423215593,1779937845000,-537.6845,0.00039501,30]
[423215589,1779937845000,-500.0,0.00039501,30]
[423215598,1779937845000,-500.0,0.00039501,30]
[423215592,1779937845000,-771.01748644,0.00039501,30]
[423215601,1779937845000,-537.6845,0.00039501,30]
[423215607,1779937845000,-500.0,0.00039501,30]
[423215602,1779937845000,-168.3888056,0.00039501,30]
[423215599,1779937845000,-151.0,0.00039501,30]
[423215605,1779937845000,-200.0,0.00039501,30]
[423215609,1779937845000,-332.78855246,0.00039501,30]
[423215608,1779937845000,-174.61919141,0.00039501,30]
[423215606,1779937845000,-162.380719,0.00039501,30]
[423215610,1779937845000,-152.0,0.00039501,30]
[423215611,1779937845000,-500.0,0.00039501,30]
[423215614,1779937845000,-4335.73295486,0.00039501,30]
[423215617,1779937845000,-174.61919141,0.00039501,30]
[423215616,1779937845000,-557.5788265,0.00039501,30]
[423215600,1779937845000,-269.917619,0.00039501,30]
[423215584,1779937845000,-156.587,0.00039501,30]
[423215546,1779937845000,-156.587,0.00039501,30]
[423215615,1779937845000,-500.0,0.00039501,30]
[423215542,1779937845000,-1068.11,0.00039501,30]
[423215554,1779937845000,-588.16406547,0.00039501,30]
[423215550,1779937845000,-500.0,0.00039501,30]
[423215564,1779937845000,-200.0,0.00039501,30]
[423215566,1779937845000,-249.49050521,0.00039501,30]
[423215559,1779937845000,-539.24,0.00039501,30]
[423215568,1779937845000,-518.5,0.00039501,30]
[423215580,1779937845000,-168.3888056,0.00039501,30]
[423215578,1779937845000,-743.50770149,0.00039501,30]
[423215579,1779937845000,-4031.856,0.00039501,30]
[423215570,1779937845000,-151.0,0.00039501,30]
[423215587,1779937845000,-500.0,0.00039501,30]
[423215575,1779937845000,-3883.26461194,0.00039501,30]
[423215576,1779937845000,-151.0,0.00039501,30]
[423215573,1779937845000,-518.5,0.00039501,30]
[423215577,1779937845000,-500.0,0.00039501,30]
[423215572,1779937845000,-200.0,0.00039501,30]
[423215581,1779937845000,-1107.63007,0.00039501,30]
[423215585,1779937845000,-168.3888056,0.00039501,30]
[423215582,1779937845000,-1613.0535,0.00039501,30]
[423215586,1779937845000,-500.0,0.00039501,30]
[423215590,1779937845000,-200.0,0.00039501,30]
[423215591,1779937845000,-559.19188,0.00039501,30]
[423215583,1779937845000,-162.380719,0.00039501,30]
[423215574,1779937845000,-260.287,0.00039501,30]
[423215612,1779937845000,-799.54513344,0.00039501,30]
[423215654,1779937845000,-500.0,0.00039501,30]
[423215619,1779937845000,-579.88197956,0.00039501,30]
[423215643,1779937845000,-187.78006524,0.00039501,30]
[423215645,1779937845000,-187.78006524,0.00039501,30]
[423215647,1779937845000,-1235.18214925,0.00039501,30]
[423215653,1779937845000,-599.60298507,0.00039501,30]
[423215652,1779937845000,-500.0,0.00039501,30]
[423215650,1779937845000,-152.0,0.00039501,30]
[423215651,1779937845000,-4662.51281193,0.00039501,30]
[423215656,1779937845000,-301.0006985,0.00039501,30]
[423215658,1779937845000,-200.0,0.00039501,30]
[423215659,1779937845000,-194.72792766,0.00039501,30]
[423215668,1779937845000,-500.0,0.00039501,30]
[423215646,1779937845000,-174.61919141,0.00039501,30]
[423215669,1779937845000,-232.24390414,0.00039501,30]
[423215660,1779937845000,-599.60298506,0.00039501,30]
[423215657,1779937845000,-151.0,0.00039501,30]
[423215667,1779937845000,-194.72792766,0.00039501,30]
[423215661,1779937845000,-151.0,0.00039501,30]
[423215664,1779937845000,-1865.36488656,0.00039501,30]
[423215666,1779937845000,-4835.02578598,0.00039501,30]
[423215662,1779937845000,-200.0,0.00039501,30]
[423215671,1779937845000,-500.0,0.00039501,30]
[423215670,1779937845000,-152.0,0.00039501,30]
[423215672,1779937845000,-201.93286098,0.00039501,30]
[423215613,1779937845000,-1191.11104074,0.00039501,30]
[423215665,1779937845000,-441.12858956,0.00039501,30]
[423215648,1779937845000,-200.0,0.00039501,30]
[423215663,1779937845000,-1280.88388877,0.00039501,30]
[423215655,1779937845000,-623.58710447,0.00039501,30]
[423215649,1779937845000,-859.8060506,0.00039501,30]
[423215629,1779937845000,-152.0,0.00039501,30]
[423215630,1779937845000,-181.08010149,0.00039501,30]
[423215618,1779937845000,-151.0,0.00039501,30]
[423215620,1779937845000,-151.0,0.00039501,30]
[423215623,1779937845000,-557.5788265,0.00039501,30]
[423215624,1779937845000,-200.0,0.00039501,30]
[423215627,1779937845000,-168.3888056,0.00039501,30]
[423215621,1779937845000,-200.0,0.00039501,30]
[423215628,1779937845000,-181.08010149,0.00039501,30]
[423215625,1779937845000,-1734.62772924,0.00039501,30]
[423215626,1779937845000,-500.0,0.00039501,30]
[423215631,1779937845000,-829.12830338,0.00039501,30]
[423215622,1779937845000,-279.9045709,0.00039501,30]
[423215635,1779937845000,-578.20924308,0.00039501,30]
[423215641,1779937845000,-151.0,0.00039501,30]
[423215636,1779937845000,-601.3376128,0.00039501,30]
[423215642,1779937845000,-1798.80895522,0.00039501,30]
[423215637,1779937845000,-151.0,0.00039501,30]
[423215639,1779937845000,-578.20924308,0.00039501,30]
[423215644,1779937845000,-500.0,0.00039501,30]
[423215633,1779937845000,-500.0,0.00039501,30]
[423215640,1779937845000,-200.0,0.00039501,30]
[423215634,1779937845000,-200.0,0.00039501,30]
[423215632,1779937845000,-4496.15507419,0.00039501,30]
[423215638,1779937845000,-290.26104002,0.00039501,30]
[423215715,1779937846000,-500.0,0.00039501,30]
[423215714,1779937846000,-1481.2378076,0.00039501,30]
[423215712,1779937846000,-2080.17592889,0.00039501,30]
[423215711,1779937846000,-668.65185756,0.00039501,30]
[423215707,1779937846000,-225.18697532,0.00039501,30]
[423215708,1779937846000,-500.0,0.00039501,30]
[423215709,1779937846000,-208.03724204,0.00039501,30]
[423215706,1779937846000,-5391.81600768,0.00039501,30]
[423215703,1779937846000,-200.0,0.00039501,30]
[423215702,1779937846000,-500.0,0.00039501,30]
[423215713,1779937846000,-200.0,0.00039501,30]
[423215710,1779937846000,-151.0,0.00039501,30]
[423215718,1779937846000,-500.0,0.00039501,30]
[423215745,1779937846000,-1592.87721992,0.00039501,30]
[423215716,1779937846000,-5591.31319997,0.00039501,30]
[423215734,1779937846000,-693.39197629,0.00039501,30]
[423215736,1779937846000,-2157.14243826,0.00039501,30]
[423215738,1779937846000,-500.0,0.00039501,30]
[423215726,1779937846000,-1536.04360648,0.00039501,30]
[423215724,1779937846000,-151.0,0.00039501,30]
[423215732,1779937846000,-151.0,0.00039501,30]
[423215730,1779937846000,-5798.19178837,0.00039501,30]
[423215740,1779937846000,-152.0,0.00039501,30]
[423215722,1779937846000,-233.5188934,0.00039501,30]
[423215728,1779937846000,-200.0,0.00039501,30]
[423215742,1779937846000,-500.0,0.00039501,30]
[423215698,1779937846000,-217.15233878,0.00039501,30]
[423215720,1779937846000,-152.0,0.00039501,30]
[423215701,1779937846000,-500.0,0.00039501,30]
[423215674,1779937846000,-500.0,0.00039501,30]
[423215700,1779937846000,-251.12247106,0.00039501,30]
[423215681,1779937846000,-151.0,0.00039501,30]
[423215682,1779937846000,-312.13772435,0.00039501,30]
[423215747,1779937846000,-200.0,0.00039501,30]
[423215680,1779937846000,-5013.92174006,0.00039501,30]
[423215673,1779937846000,-621.78829552,0.00039501,30]
[423215677,1779937846000,-1328.27659266,0.00039501,30]
[423215678,1779937846000,-200.0,0.00039501,30]
[423215675,1779937846000,-662.59338221,0.00039501,30]
[423215679,1779937846000,-151.0,0.00039501,30]
[423215676,1779937846000,-200.0,0.00039501,30]
[423215683,1779937846000,-1934.38338736,0.00039501,30]
[423215685,1779937846000,-201.93286098,0.00039501,30]
[423215687,1779937846000,-152.0,0.00039501,30]
[423215686,1779937846000,-209.40437684,0.00039501,30]
[423215684,1779937846000,-500.0,0.00039501,30]
[423215691,1779937846000,-5199.43684444,0.00039501,30]
[423215688,1779937846000,-500.0,0.00039501,30]
[423215694,1779937846000,-200.0,0.00039501,30]
[423215690,1779937846000,-1377.42282658,0.00039501,30]
[423215693,1779937846000,-500.0,0.00039501,30]
[423215692,1779937846000,-644.79446245,0.00039501,30]
[423215689,1779937846000,-200.0,0.00039501,30]
[423215695,1779937846000,-151.0,0.00039501,30]
[423215705,1779937846000,-152.0,0.00039501,30]
[423215704,1779937846000,-1428.38747117,0.00039501,30]
[423215696,1779937846000,-151.0,0.00039501,30]
[423215697,1779937846000,-349.07023514,0.00039501,30]
[423215699,1779937846000,-2005.9555727,0.00039501,30]
[423215749,1779937846000,-500.0,0.00039501,30]
[423215752,1779937846000,-6012.72488454,0.00039501,30]
[423215764,1779937846000,-6235.19570527,0.00039501,30]
[423215802,1779937846000,-151.0,0.00039501,30]
[423215811,1779937846000,-801.85129954,0.00039501,30]
[423215805,1779937846000,-6953.22620868,0.00039501,30]
[423215814,1779937846000,-269.4846249,0.00039501,30]
[423215808,1779937846000,-2494.55939288,0.00039501,30]
[423215816,1779937846000,-152.0,0.00039501,30]
[423215820,1779937846000,-151.0,0.00039501,30]
[423215817,1779937846000,-500.0,0.00039501,30]
[423215823,1779937846000,-7210.4955784,0.00039501,30]
[423215826,1779937846000,-500.0,0.00039501,30]
[423215830,1779937846000,-2586.85809042,0.00039501,30]
[423215828,1779937846000,-151.0,0.00039501,30]
[423215833,1779937846000,-831.51979762,0.00039501,30]
[423215798,1779937846000,-1271.82281573,0.00039501,30]
[423215836,1779937846000,-152.0,0.00039501,30]
[423215848,1779937846000,-500.0,0.00039501,30]
[423215851,1779937846000,-151.0,0.00039501,30]
[423215854,1779937846000,-862.28603014,0.00039501,30]
[423215845,1779937846000,-151.0,0.00039501,30]
[423215842,1779937846000,-439.6293395,0.00039501,30]
[423215857,1779937846000,-7753.94341965,0.00039501,30]
[423215751,1779937846000,-151.0,0.00039501,30]
[423215870,1779937846000,-686.93642032,0.00039572,2]
[423215866,1779937846000,-250.0,0.00039502,30]
[423215864,1779937846000,-250.0,0.00039502,30]
[423215868,1779937846000,-2845.33103828,0.00039502,30]
[423215874,1779937846000,-288.70819931,0.00039573,2]
[423215872,1779937846000,-686.93642031,0.00039573,2]
[423215840,1779937846000,-7477.2839148,0.00039501,30]
[423215800,1779937846000,-500.0,0.00039501,30]
[423215861,1779937846000,-156.71115077,0.00039501,30]
[423215794,1779937846000,-152.0,0.00039501,30]
[423215796,1779937846000,-151.0,0.00039501,30]
[423215763,1779937846000,-500.0,0.00039501,30]
[423215762,1779937846000,-152.0,0.00039501,30]
[423215754,1779937846000,-151.0,0.00039501,30]
[423215758,1779937846000,-500.0,0.00039501,30]
[423215756,1779937846000,-719.04747942,0.00039501,30]
[423215757,1779937846000,-2236.95670847,0.00039501,30]
[423215760,1779937846000,-200.0,0.00039501,30]
[423215759,1779937846000,-500.0,0.00039501,30]
[423215766,1779937846000,-151.0,0.00039501,30]
[423215777,1779937846000,-1776.30922209,0.00039501,30]
[423215779,1779937846000,-151.0,0.00039501,30]
[423215768,1779937846000,-2319.72410669,0.00039501,30]
[423215761,1779937846000,-1651.81367706,0.00039501,30]
[423215767,1779937846000,-745.65223615,0.00039501,30]
[423215765,1779937846000,-151.0,0.00039501,30]
[423215785,1779937846000,-500.0,0.00039501,30]
[423215781,1779937846000,-2405.55389863,0.00039501,30]
[423215783,1779937846000,-773.24136889,0.00039501,30]
[423215773,1779937846000,-6465.89794636,0.00039501,30]
[423215790,1779937846000,-6705.13617038,0.00039501,30]
[423215770,1779937846000,-500.0,0.00039501,30]
[423215769,1779937846000,-1712.93078311,0.00039501,30]
[423215771,1779937846000,-500.0,0.00039501,30]
[423215792,1779937846000,-500.0,0.00039501,30]
[423215775,1779937846000,-500.0,0.00039501,30]
[423215774,1779937846000,-151.0,0.00039501,30]
[423215772,1779937846000,-152.0,0.00039501,30]
[423215943,1779937847000,-500.0,0.00039672,30]
[423215925,1779937847000,-1000.0,0.00039669,10]
[423215929,1779937847000,-1000.0,0.00039672,2]
[423215927,1779937847000,-1000.0,0.00039672,120]
[423215933,1779937847000,-500.0,0.00039672,30]
[423215941,1779937847000,-500.0,0.00039672,30]
[423215937,1779937847000,-500.0,0.00039672,30]
[423215935,1779937847000,-500.0,0.00039672,30]
[423215939,1779937847000,-500.0,0.00039672,30]
[423215931,1779937847000,-500.0,0.00039672,30]
[423215954,1779937847000,-500.0,0.00039672,30]
[423215948,1779937847000,-500.0,0.00039672,30]
[423215946,1779937847000,-500.0,0.00039672,30]
[423215950,1779937847000,-500.0,0.00039672,30]
[423215961,1779937847000,-500.0,0.00039672,30]
[423215962,1779937847000,-500.0,0.00039672,30]
[423215965,1779937847000,-500.0,0.00039672,30]
[423215952,1779937847000,-500.0,0.00039672,30]
[423215956,1779937847000,-500.0,0.00039672,30]
[423215959,1779937847000,-500.0,0.00039672,30]
[423215969,1779937847000,-500.0,0.00039672,30]
[423215945,1779937847000,-500.0,0.00039672,30]
[423215923,1779937847000,-167.0,0.00039666,120]
[423215895,1779937847000,-800.0,0.00039642,14]
[423215901,1779937847000,-800.0,0.00039642,14]
[423215974,1779937847000,-500.0,0.00039672,30]
[423215876,1779937847000,-1937.45516435,0.00039573,2]
[423215880,1779937847000,-686.93642031,0.00039573,2]
[423215881,1779937847000,-4875.16898213,0.00039573,2]
[423215878,1779937847000,-14129.36749345,0.00039573,2]
[423215887,1779937847000,-500.0,0.00039609,120]
[423215889,1779937847000,-800.0,0.00039642,14]
[423215883,1779937847000,-1000.0,0.00039599,60]
[423215885,1779937847000,-1000.0,0.00039604,14]
[423215893,1779937847000,-800.0,0.00039642,14]
[423215905,1779937847000,-499.0,0.00039644,120]
[423215891,1779937847000,-800.0,0.00039642,14]
[423215909,1779937847000,-154.0,0.00039666,120]
[423215911,1779937847000,-353.0,0.00039666,120]
[423215907,1779937847000,-152.00773521,0.00039666,2]
[423215917,1779937847000,-157.0,0.00039666,120]
[423215913,1779937847000,-445.26,0.00039666,10]
[423215915,1779937847000,-153.0,0.00039666,120]
[423215919,1779937847000,-764.0,0.00039666,120]
[423215903,1779937847000,-800.0,0.00039642,14]
[423215899,1779937847000,-800.0,0.00039642,14]
[423215921,1779937847000,-160.0,0.00039666,120]
[423215897,1779937847000,-800.0,0.00039642,14]
[423215966,1779937847000,-500.0,0.00039672,30]
[423215998,1779937847000,-500.0,0.00039672,120]
[423215972,1779937847000,-500.0,0.00039672,30]
[423216011,1779937847000,-500.0,0.00039672,120]
[423216013,1779937847000,-500.0,0.00039672,120]
[423216012,1779937847000,-500.0,0.00039672,120]
[423216021,1779937847000,-48003.35649749,0.00039673,2]
[423216014,1779937847000,-500.0,0.00039672,120]
[423216010,1779937847000,-500.0,0.00039672,120]
[423216020,1779937847000,-48003.35649749,0.00039673,2]
[423216019,1779937847000,-48003.35649749,0.00039673,2]
[423216015,1779937847000,-500.0,0.00039672,120]
[423216018,1779937847000,-19084.42241949,0.00039673,2]
[423216016,1779937847000,-500.0,0.00039672,120]
[423216022,1779937847000,-719.65219289,0.00039673,120]
[423216023,1779937847000,-160235.39064449,0.00039673,24]
[423216025,1779937847000,-1000.0,0.00018067,2]
[423216027,1779937847000,-151.0,0.00021093,2]
[423216024,1779937847000,-566097.1255,0.00014052,2]
[423216030,1779937847000,-151.0,0.00021093,2]
[423216026,1779937847000,-151.0,0.00021093,2]
[423216029,1779937847000,-151.0,0.00021093,2]
[423216028,1779937847000,-151.0,0.00021093,2]
[423215970,1779937847000,-500.0,0.00039672,30]
[423216006,1779937847000,-500.0,0.00039672,120]
[423216008,1779937847000,-500.0,0.00039672,120]
[423216017,1779937847000,-306.03924541,0.00039672,120]
[423216007,1779937847000,-500.0,0.00039672,120]
[423215976,1779937847000,-500.0,0.00039672,30]
[423216009,1779937847000,-500.0,0.00039672,120]
[423215978,1779937847000,-500.0,0.00039672,30]
[423215982,1779937847000,-589.19632464,0.00039672,30]
[423215990,1779937847000,-500.0,0.00039672,120]
[423215984,1779937847000,-1000.0,0.00039672,120]
[423215986,1779937847000,-303.40891052,0.00039672,120]
[423215988,1779937847000,-500.0,0.00039672,120]
[423215996,1779937847000,-500.0,0.00039672,120]
[423215995,1779937847000,-500.0,0.00039672,120]
[423215993,1779937847000,-500.0,0.00039672,120]
[423215981,1779937847000,-500.0,0.00039672,30]
[423215994,1779937847000,-500.0,0.00039672,120]
[423215992,1779937847000,-500.0,0.00039672,120]
[423215997,1779937847000,-500.0,0.00039672,120]
[423216003,1779937847000,-500.0,0.00039672,120]
[423216000,1779937847000,-500.0,0.00039672,120]
[423216002,1779937847000,-500.0,0.00039672,120]
[423216001,1779937847000,-500.0,0.00039672,120]
[423215999,1779937847000,-500.0,0.00039672,120]
[423216004,1779937847000,-500.0,0.00039672,120]
[423216005,1779937847000,-500.0,0.00039672,120]
[423215991,1779937847000,-500.0,0.00039672,120]
[423216045,1779937848000,-1852.16914915,0.00039501,30]
[423216044,1779937848000,-500.0,0.00039501,30]
[423216046,1779937848000,-151.0,0.00039501,30]
[423216051,1779937848000,-151.0,0.00039501,30]
[423216052,1779937848000,-997.16350561,0.00039501,30]
[423216047,1779937848000,-927.27566594,0.00039501,30]
[423216038,1779937848000,-950.53639116,0.00035694,2]
[423216049,1779937848000,-961.58486558,0.00039501,30]
[423216048,1779937848000,-151.0,0.00039501,30]
[423216037,1779937848000,-527.74435971,0.00035694,2]
[423216043,1779937848000,-894.19061325,0.00039501,30]
[423216036,1779937848000,-344.53139053,0.00035694,2]
[423216035,1779937848000,-707.0,0.00033833,30]
[423216041,1779937848000,-500.0,0.00039501,30]
[423216040,1779937848000,-151.0,0.00039501,30]
[423216042,1779937848000,-158.94447078,0.00039501,30]
[423216033,1779937848000,-253.33,0.0002755,2]
[423216032,1779937848000,-190.0,0.00024658,2]
[423216031,1779937848000,-151.0,0.00021093,2]
[423216050,1779937848000,-500.0,0.00039501,30]
[423216039,1779937848000,-35188.34223262,0.00036054,2]
[423216054,1779937848000,-111629.41600906,0.00039673,24]
[423216034,1779937848000,-190.0,0.00029,7]
[423216065,1779937848000,-151.0,0.00039673,30]
[423216064,1779937848000,-151.0,0.00039673,30]
[423216077,1779937848000,-298.34,0.00039673,30]
[423216075,1779937848000,-1800.20391073,0.00035694,2]
[423216074,1779937848000,-930.0,0.00022472,2]
[423216073,1779937848000,-932.0,0.00019472,2]
[423216072,1779937848000,-5947.13273995,0.00039673,30]
[423216071,1779937848000,-1172.87999997,0.00039673,30]
[423216070,1779937848000,-90933.89969966,0.00039673,30]
[423216068,1779937848000,-196549.08744873,0.00039673,30]
[423216067,1779937848000,-2000.0,0.00039673,116]
[423216069,1779937848000,-422142.19016459,0.00039673,30]
[423216076,1779937848000,-7814.58742283,0.00039673,30]
[423216063,1779937848000,-500.811024,0.00039673,30]
[423216060,1779937848000,-500.811024,0.00039673,30]
[423216062,1779937848000,-500.811024,0.00039673,30]
[423216058,1779937848000,-151.0,0.00039673,30]
[423216055,1779937848000,-30000.0,0.00039673,2]
[423216057,1779937848000,-151.0,0.00039673,30]
[423216053,1779937848000,-151.0,0.00039501,30]
[423216061,1779937848000,-500.811024,0.00039673,30]
[423216059,1779937848000,-230.438471,0.00039673,30]
[423216056,1779937848000,-15152.22050542,0.00039673,10]
[423216066,1779937848000,-2000.0,0.00039673,116]
[423216078,1779937871000,166.8829705,0.0001,3]
[423216079,1779938331000,2000.0,0.0002808,120]
[423216081,1779938402000,162.97,0.00028082,120]
[423216083,1779938634000,24525.0,0.00028082,120]
[423216084,1779938671000,159.98,6.716e-05,2]
[423216085,1779938682000,165.34112657,0.00028,120]
[423216089,1779938947000,-2.59644072,0.0001077,2]
[423216086,1779938947000,-378.8139062,0.0001,2]
[423216087,1779938947000,-280.41427685,0.0001,2]
[423216088,1779938947000,-1559.65669352,0.0001067,2]
[423216125,1779939031000,-150.0,0.00013488,2]
[423216131,1779939031000,-753.92669872,0.00013503,2]
[423216123,1779939031000,-150.0,0.00013488,2]
[423216127,1779939031000,-150.0,0.00013488,2]
[423216119,1779939031000,-1031.335992,0.00013393,2]
[423216121,1779939031000,-160.75,0.0001346,2]
[423216128,1779939031000,-53.42669872,0.00013488,2]
[423216130,1779939031000,-150.0,0.00013488,2]
[423216129,1779939031000,-96.57330128,0.00013488,2]
[423216117,1779939031000,-147.84355928,0.0001077,2]
[423216134,1779939031000,-69.46669872,0.00013579,2]
[423216137,1779939031000,-376.11,0.00013679,2]
[423216135,1779939031000,-322.32650165,0.00013579,2]
[423216136,1779939031000,-678.03679963,0.00013579,2]
[423216138,1779939031000,-500.0,0.00013698,2]
[423216133,1779939031000,-155.45,0.00013544,2]
[423216139,1779939031000,-441.0644997,0.00013698,2]
[423216141,1779939031000,-500.0,0.00013698,2]
[423216140,1779939031000,-500.0,0.00013698,2]